[Event "Titled Tuesday Blitz May 9 Late 2023"]
[White "Stead, Kerry"]
[Black "ArtemDyachuk"]
[WhiteFideId "3202577"]
[WhiteElo "1997"]
[BlackElo "2534"]
[Result "0-1"]
[Round "01"]
[TimeControl "180+2"]
[Date "2023.05.09"]
[WhiteClock "0:01:07"]
[BlackClock "0:01:19"]

1. d4 {[%clk 0:02:55]}  Nf6 {[%clk 0:02:59]} 2. f3 {[%clk 0:02:55]}  c5 {[%clk 0:02:55]} 3. d5 {[%clk 0:02:55]}  e6 {[%clk 0:02:55]} 4. c4 {[%clk 0:02:55]}  exd5 {[%clk 0:02:52]} 5. cxd5 {[%clk 0:02:55]}  d6 {[%clk 0:02:50]} 6. e4 {[%clk 0:02:55]}  g6 {[%clk 0:02:50]} 7. Ne2 {[%clk 0:02:54]}  Bg7 {[%clk 0:02:50]} 8. Nec3 {[%clk 0:02:54]}  O-O {[%clk 0:02:49]} 9. Be2 {[%clk 0:02:53]}  Nh5 {[%clk 0:02:48]} 10. Be3 {[%clk 0:02:44]}  f5 {[%clk 0:02:48]} 11. O-O {[%clk 0:02:39]}  f4 {[%clk 0:02:26]} 12. Bf2 {[%clk 0:02:39]}  Nd7 {[%clk 0:02:25]} 13. a4 {[%clk 0:02:38]}  Ne5 {[%clk 0:02:22]} 14. Na3 {[%clk 0:02:35]}  Qg5 {[%clk 0:02:21]} 15. Kh1 {[%clk 0:02:34]}  Ng3+ {[%clk 0:02:20]} 16. Bxg3 {[%clk 0:02:33]}  fxg3 {[%clk 0:02:21]} 17. hxg3 {[%clk 0:02:26]}  Qxg3 {[%clk 0:02:20]} 18. Qe1 {[%clk 0:02:26]}  Qg5 {[%clk 0:02:18]} 19. Nc4 {[%clk 0:02:11]}  Nxc4 {[%clk 0:02:16]} 20. Bxc4 {[%clk 0:02:11]}  Qh6+ {[%clk 0:02:13]} 21. Kg1 {[%clk 0:02:10]}  Bd4+ {[%clk 0:02:12]} 22. Rf2 {[%clk 0:02:09]}  Bd7 {[%clk 0:02:08]} 23. Ne2 {[%clk 0:01:59]}  Bxf2+ {[%clk 0:02:07]} 24. Qxf2 {[%clk 0:01:59]}  Qd2 {[%clk 0:02:04]} 25. Nc3 {[%clk 0:01:52]}  Qxf2+ {[%clk 0:02:02]} 26. Kxf2 {[%clk 0:01:53]}  a6 {[%clk 0:02:01]} 27. Ke3 {[%clk 0:01:46]}  Kg7 {[%clk 0:01:49]} 28. g4 {[%clk 0:01:43]}  g5 {[%clk 0:01:46]} 29. Ne2 {[%clk 0:01:41]}  b5 {[%clk 0:01:45]} 30. axb5 {[%clk 0:01:40]}  axb5 {[%clk 0:01:46]} 31. Rxa8 {[%clk 0:01:39]}  Rxa8 {[%clk 0:01:45]} 32. Bd3 {[%clk 0:01:35]}  Kf6 {[%clk 0:01:44]} 33. Ng3 {[%clk 0:01:34]}  Ke5 {[%clk 0:01:43]} 34. Nh5 {[%clk 0:01:26]}  c4 {[%clk 0:01:33]} 35. Be2 {[%clk 0:01:07]}  Ra2 {[%clk 0:01:19]} 0-1


[Site "https://www.chess.com"]

[Event "Titled Tuesday Blitz May 9 Late 2023"]
[White "Sreyas Payyappat"]
[Black "Butti, Enrique"]
[WhiteFideId "46674969"]
[BlackFideId "3700470"]
[WhiteElo "2043"]
[BlackElo "2080"]
[Result "1-0"]
[Round "01"]
[TimeControl "180+2"]
[Date "2023.05.09"]
[WhiteClock "0:00:50"]
[BlackClock "0:01:40"]

1. e4 {[%clk 0:02:57]}  c5 {[%clk 0:02:59]} 2. Nf3 {[%clk 0:02:57]}  d6 {[%clk 0:02:59]} 3. d4 {[%clk 0:02:57]}  cxd4 {[%clk 0:02:59]} 4. Nxd4 {[%clk 0:02:58]}  Nf6 {[%clk 0:02:59]} 5. Nc3 {[%clk 0:02:57]}  a6 {[%clk 0:02:59]} 6. h4 {[%clk 0:02:55]}  e5 {[%clk 0:02:57]} 7. Nb3 {[%clk 0:02:55]}  Be6 {[%clk 0:02:55]} 8. f4 {[%clk 0:02:54]}  exf4 {[%clk 0:02:53]} 9. Bxf4 {[%clk 0:02:55]}  Nc6 {[%clk 0:02:52]} 10. Qd2 {[%clk 0:02:54]}  Ne5 {[%clk 0:02:52]} 11. O-O-O {[%clk 0:02:52]}  Qc7 {[%clk 0:02:48]} 12. g3 {[%clk 0:02:45]}  Rc8 {[%clk 0:02:44]} 13. Kb1 {[%clk 0:02:30]}  b5 {[%clk 0:02:43]} 14. Bxb5+ {[%clk 0:02:00]}  axb5 {[%clk 0:02:42]} 15. Nxb5 {[%clk 0:02:00]}  Qc6 {[%clk 0:02:38]} 16. Na7 {[%clk 0:01:55]}  Qb7 {[%clk 0:02:34]} 17. Nxc8 {[%clk 0:01:45]}  Qxc8 {[%clk 0:02:34]} 18. Bxe5 {[%clk 0:01:27]}  dxe5 {[%clk 0:02:33]} 19. Qa5 {[%clk 0:01:28]}  Nd7 {[%clk 0:02:27]} 20. Rd3 {[%clk 0:01:08]}  Be7 {[%clk 0:02:17]} 21. Rc3 {[%clk 0:01:08]}  Qb8 {[%clk 0:02:10]} 22. Qc7 {[%clk 0:01:07]}  Qxc7 {[%clk 0:02:06]} 23. Rxc7 {[%clk 0:01:08]}  O-O {[%clk 0:02:05]} 24. Rd1 {[%clk 0:01:04]}  Nf6 {[%clk 0:01:54]} 25. Rxe7 {[%clk 0:01:02]}  Nxe4 {[%clk 0:01:53]} 26. a4 {[%clk 0:00:59]}  Rb8 {[%clk 0:01:48]} 27. a5 {[%clk 0:00:57]}  g6 {[%clk 0:01:46]} 28. a6 {[%clk 0:00:55]}  Bxb3 {[%clk 0:01:40]} 29. cxb3 {[%clk 0:00:50]} 1-0


[Site "https://www.chess.com"]

[Event "Titled Tuesday Blitz May 9 Late 2023"]
[White "Torres Dominguez, David"]
[Black "FoxOnTheRun97"]
[WhiteFideId "2220857"]
[WhiteElo "1999"]
[BlackElo "2528"]
[Result "0-1"]
[Round "01"]
[TimeControl "180+2"]
[Date "2023.05.09"]
[WhiteClock "0:00:00"]
[BlackClock "0:00:04"]

1. e4 {[%clk 0:02:58]}  c6 {[%clk 0:02:57]} 2. Nf3 {[%clk 0:02:57]}  d5 {[%clk 0:02:57]} 3. d3 {[%clk 0:02:56]}  dxe4 {[%clk 0:02:54]} 4. dxe4 {[%clk 0:02:57]}  Qxd1+ {[%clk 0:02:54]} 5. Kxd1 {[%clk 0:02:57]}  Bg4 {[%clk 0:02:53]} 6. Be2 {[%clk 0:02:56]}  Nd7 {[%clk 0:02:50]} 7. Nfd2 {[%clk 0:02:55]}  Bxe2+ {[%clk 0:02:49]} 8. Kxe2 {[%clk 0:02:55]}  g5 {[%clk 0:02:46]} 9. Nb3 {[%clk 0:02:54]}  h6 {[%clk 0:02:44]} 10. Be3 {[%clk 0:02:50]}  Bg7 {[%clk 0:02:42]} 11. c3 {[%clk 0:02:47]}  O-O-O {[%clk 0:02:14]} 12. N1d2 {[%clk 0:02:44]}  e6 {[%clk 0:02:06]} 13. a4 {[%clk 0:02:39]}  Kb8 {[%clk 0:01:58]} 14. a5 {[%clk 0:02:32]}  Ne7 {[%clk 0:01:56]} 15. Nc4 {[%clk 0:02:28]}  Ne5 {[%clk 0:01:49]} 16. Nxe5 {[%clk 0:02:24]}  Bxe5 {[%clk 0:01:50]} 17. h3 {[%clk 0:02:18]}  Ng6 {[%clk 0:01:48]} 18. g3 {[%clk 0:02:15]}  Rd7 {[%clk 0:01:40]} 19. Rhd1 {[%clk 0:02:12]}  Rhd8 {[%clk 0:01:39]} 20. Rxd7 {[%clk 0:02:10]}  Rxd7 {[%clk 0:01:40]} 21. Rd1 {[%clk 0:02:04]}  Rxd1 {[%clk 0:01:37]} 22. Kxd1 {[%clk 0:02:04]}  Bc7 {[%clk 0:01:31]} 23. Ke2 {[%clk 0:02:00]}  Ne5 {[%clk 0:01:14]} 24. Nd2 {[%clk 0:01:43]}  f6 {[%clk 0:00:53]} 25. b4 {[%clk 0:01:39]}  b6 {[%clk 0:00:52]} 26. axb6 {[%clk 0:01:35]}  axb6 {[%clk 0:00:53]} 27. f4 {[%clk 0:01:25]}  Nf7 {[%clk 0:00:50]} 28. f5 {[%clk 0:01:19]}  exf5 {[%clk 0:00:46]} 29. exf5 {[%clk 0:01:17]}  Bxg3 {[%clk 0:00:46]} 30. Bxb6 {[%clk 0:01:08]}  Nd6 {[%clk 0:00:43]} 31. Bd4 {[%clk 0:01:01]}  Be5 {[%clk 0:00:31]} 32. Bxe5 {[%clk 0:00:57]}  fxe5 {[%clk 0:00:32]} 33. f6 {[%clk 0:00:57]}  Kc7 {[%clk 0:00:29]} 34. Nc4 {[%clk 0:00:52]}  Nf7 {[%clk 0:00:26]} 35. Ke3 {[%clk 0:00:50]}  Kd7 {[%clk 0:00:26]} 36. Ke4 {[%clk 0:00:44]}  Ke6 {[%clk 0:00:26]} 37. Na5 {[%clk 0:00:35]}  Nd8 {[%clk 0:00:26]} 38. c4 {[%clk 0:00:29]}  Kxf6 {[%clk 0:00:22]} 39. b5 {[%clk 0:00:29]}  cxb5 {[%clk 0:00:22]} 40. cxb5 {[%clk 0:00:28]}  Ne6 {[%clk 0:00:17]} 41. b6 {[%clk 0:00:26]}  Nc5+ {[%clk 0:00:17]} 42. Kd5 {[%clk 0:00:23]}  Na6 {[%clk 0:00:14]} 43. b7 {[%clk 0:00:18]}  Kf5 {[%clk 0:00:12]} 44. Nc6 {[%clk 0:00:18]}  e4 {[%clk 0:00:12]} 45. Kd4 {[%clk 0:00:16]}  Kf4 {[%clk 0:00:11]} 46. Ne7 {[%clk 0:00:13]}  h5 {[%clk 0:00:09]} 47. Nd5+ {[%clk 0:00:12]}  Kf3 {[%clk 0:00:09]} 48. Ne3 {[%clk 0:00:11]}  Nb8 {[%clk 0:00:08]} 49. Nf5 {[%clk 0:00:08]}  g4 {[%clk 0:00:05]} 50. hxg4 {[%clk 0:00:07]}  hxg4 {[%clk 0:00:06]} 51. Ke5 {[%clk 0:00:03]}  e3 {[%clk 0:00:04]} 52. Nd4+ {[%clk 0:00:02]}  Kf2 {[%clk 0:00:04]} 53. Kf4 {[%clk 0:00:00]}  g3 {[%clk 0:00:04]} 0-1


[Site "https://www.chess.com"]

[Event "Titled Tuesday Blitz May 9 Late 2023"]
[White "Maluco_do_Natal_00"]
[Black "Karttunen, Mika"]
[BlackFideId "502081"]
[WhiteElo "2032"]
[BlackElo "2396"]
[Result "0-1"]
[Round "01"]
[TimeControl "180+2"]
[Date "2023.05.09"]
[WhiteClock "0:00:00"]
[BlackClock "0:01:13"]

1. e4 {[%clk 0:02:57]}  e6 {[%clk 0:02:59]} 2. d4 {[%clk 0:02:56]}  d5 {[%clk 0:02:59]} 3. Nc3 {[%clk 0:02:56]}  Bb4 {[%clk 0:02:59]} 4. e5 {[%clk 0:02:56]}  c5 {[%clk 0:02:59]} 5. a3 {[%clk 0:02:56]}  Bxc3+ {[%clk 0:02:59]} 6. bxc3 {[%clk 0:02:57]}  Qa5 {[%clk 0:02:59]} 7. Bd2 {[%clk 0:02:43]}  Qa4 {[%clk 0:02:58]} 8. Qg4 {[%clk 0:01:22]}  Kf8 {[%clk 0:02:57]} 9. Bd3 {[%clk 0:01:05]}  c4 {[%clk 0:02:54]} 10. Be2 {[%clk 0:00:54]}  Ne7 {[%clk 0:02:50]} 11. Nf3 {[%clk 0:00:46]}  Nf5 {[%clk 0:02:30]} 12. O-O {[%clk 0:00:43]}  Nc6 {[%clk 0:02:29]} 13. Rfc1 {[%clk 0:00:35]}  Bd7 {[%clk 0:02:26]} 14. Nh4 {[%clk 0:00:29]}  Nce7 {[%clk 0:02:24]} 15. Nxf5 {[%clk 0:00:15]}  Nxf5 {[%clk 0:02:24]} 16. Qh3 {[%clk 0:00:11]}  Qa5 {[%clk 0:02:14]} 17. Be1 {[%clk 0:00:09]}  h5 {[%clk 0:01:33]} 18. g3 {[%clk 0:00:07]}  Kg8 {[%clk 0:01:29]} 19. Qg2 {[%clk 0:00:06]}  Ba4 {[%clk 0:01:24]} 20. h4 {[%clk 0:00:05]}  Rc8 {[%clk 0:01:15]} 21. Bf3 {[%clk 0:00:05]}  Rc6 {[%clk 0:01:14]} 22. Rab1 {[%clk 0:00:03]}  Rb6 {[%clk 0:01:14]} 23. Rxb6 {[%clk 0:00:02]}  Qxb6 {[%clk 0:01:15]} 24. Bd1 {[%clk 0:00:00]}  Qa5 {[%clk 0:01:13]} 0-1


[Site "https://www.chess.com"]

[Event "Titled Tuesday Blitz May 9 Late 2023"]
[White "dorpato"]
[Black "Grinev, Valeriy"]
[BlackFideId "14117517"]
[WhiteElo "2021"]
[BlackElo "2366"]
[Result "0-1"]
[Round "01"]
[TimeControl "180+2"]
[Date "2023.05.09"]
[WhiteClock "0:00:00"]
[BlackClock "0:00:51"]

1. e4 {[%clk 0:02:57]}  e6 {[%clk 0:02:58]} 2. d4 {[%clk 0:02:56]}  d5 {[%clk 0:02:58]} 3. e5 {[%clk 0:02:55]}  c5 {[%clk 0:02:59]} 4. c3 {[%clk 0:02:54]}  Nc6 {[%clk 0:02:59]} 5. Nf3 {[%clk 0:02:53]}  Qb6 {[%clk 0:03:00]} 6. a3 {[%clk 0:02:52]}  Nh6 {[%clk 0:02:59]} 7. Bd3 {[%clk 0:02:42]}  cxd4 {[%clk 0:02:52]} 8. cxd4 {[%clk 0:02:40]}  Bd7 {[%clk 0:02:52]} 9. Bc2 {[%clk 0:02:35]}  Be7 {[%clk 0:02:32]} 10. O-O {[%clk 0:02:25]}  g5 {[%clk 0:02:31]} 11. Bxg5 {[%clk 0:00:57]}  Bxg5 {[%clk 0:02:24]} 12. Nxg5 {[%clk 0:00:50]}  Nxd4 {[%clk 0:02:22]} 13. Bxh7 {[%clk 0:00:28]}  Bb5 {[%clk 0:02:01]} 14. Re1 {[%clk 0:00:19]}  Nhf5 {[%clk 0:01:50]} 15. Qh5 {[%clk 0:00:16]}  O-O-O {[%clk 0:01:44]} 16. Nxf7 {[%clk 0:00:15]}  Be8 {[%clk 0:01:42]} 17. Qg6 {[%clk 0:00:09]}  Bxf7 {[%clk 0:01:41]} 18. Qxf7 {[%clk 0:00:09]}  Rd7 {[%clk 0:01:35]} 19. Qg6 {[%clk 0:00:06]}  Rdxh7 {[%clk 0:01:30]} 20. Nc3 {[%clk 0:00:06]}  Rg7 {[%clk 0:01:27]} 21. Qf6 {[%clk 0:00:05]}  Nf3+ {[%clk 0:01:27]} 22. Kf1 {[%clk 0:00:05]}  Nxe1 {[%clk 0:01:18]} 23. Rxe1 {[%clk 0:00:06]}  Kb8 {[%clk 0:01:09]} 24. g4 {[%clk 0:00:05]}  Rxh2 {[%clk 0:00:51]} 25. Qf8+ {[%clk 0:00:00]}  Kc7 {[%clk 0:00:51]} 0-1


[Site "https://www.chess.com"]

[Event "Titled Tuesday Blitz May 9 Late 2023"]
[White "Karas, Marek"]
[Black "Sanchez, Robert"]
[WhiteFideId "14928558"]
[BlackFideId "2034360"]
[WhiteElo "2233"]
[BlackElo "1868"]
[Result "1-0"]
[Round "01"]
[TimeControl "180+2"]
[Date "2023.05.09"]
[WhiteClock "0:00:51"]
[BlackClock "0:00:22"]

1. Nf3 {[%clk 0:02:58]}  d5 {[%clk 0:02:50]} 2. g3 {[%clk 0:02:56]}  c6 {[%clk 0:02:48]} 3. Bg2 {[%clk 0:02:50]}  Nf6 {[%clk 0:02:48]} 4. O-O {[%clk 0:02:48]}  Bf5 {[%clk 0:02:48]} 5. d3 {[%clk 0:02:44]}  e6 {[%clk 0:02:47]} 6. c4 {[%clk 0:02:40]}  Nbd7 {[%clk 0:02:46]} 7. Qb3 {[%clk 0:02:37]}  b6 {[%clk 0:02:17]} 8. cxd5 {[%clk 0:02:33]}  cxd5 {[%clk 0:02:00]} 9. Nc3 {[%clk 0:02:29]}  Be7 {[%clk 0:01:57]} 10. Bf4 {[%clk 0:02:20]}  O-O {[%clk 0:01:55]} 11. Ne5 {[%clk 0:02:10]}  Nxe5 {[%clk 0:01:54]} 12. Bxe5 {[%clk 0:02:11]}  Nd7 {[%clk 0:01:54]} 13. Bf4 {[%clk 0:02:09]}  Nc5 {[%clk 0:01:52]} 14. Qd1 {[%clk 0:02:04]}  h6 {[%clk 0:01:48]} 15. e4 {[%clk 0:02:03]}  dxe4 {[%clk 0:01:46]} 16. dxe4 {[%clk 0:02:04]}  Bg6 {[%clk 0:01:44]} 17. Qe2 {[%clk 0:02:00]}  Qd3 {[%clk 0:01:39]} 18. Rfe1 {[%clk 0:01:56]}  Qxe2 {[%clk 0:01:38]} 19. Rxe2 {[%clk 0:01:57]}  Rac8 {[%clk 0:01:37]} 20. Rd1 {[%clk 0:01:53]}  Rfd8 {[%clk 0:01:09]} 21. Rxd8+ {[%clk 0:01:46]}  Rxd8 {[%clk 0:01:07]} 22. Rd2 {[%clk 0:01:46]}  Rxd2 {[%clk 0:01:03]} 23. Bxd2 {[%clk 0:01:47]}  Bf6 {[%clk 0:01:03]} 24. f3 {[%clk 0:01:44]}  Nd3 {[%clk 0:00:58]} 25. b3 {[%clk 0:01:43]}  Bd4+ {[%clk 0:00:48]} 26. Kf1 {[%clk 0:01:42]}  f5 {[%clk 0:00:45]} 27. Ke2 {[%clk 0:01:34]}  Bxc3 {[%clk 0:00:42]} 28. Bxc3 {[%clk 0:01:35]}  fxe4 {[%clk 0:00:42]} 29. fxe4 {[%clk 0:01:33]}  Nc1+ {[%clk 0:00:42]} 30. Ke3 {[%clk 0:01:27]}  Nxa2 {[%clk 0:00:43]} 31. Bd2 {[%clk 0:01:27]}  a5 {[%clk 0:00:40]} 32. Kd4 {[%clk 0:01:21]}  e5+ {[%clk 0:00:35]} 33. Kxe5 {[%clk 0:01:05]}  Bf7 {[%clk 0:00:32]} 34. Be3 {[%clk 0:01:04]}  Bxb3 {[%clk 0:00:27]} 35. Bxb6 {[%clk 0:01:02]}  a4 {[%clk 0:00:28]} 36. Bc5 {[%clk 0:00:58]}  Nc1 {[%clk 0:00:27]} 37. Ba3 {[%clk 0:00:51]}  Bf7 {[%clk 0:00:22]} 1-0


[Site "https://www.chess.com"]

[Event "Titled Tuesday Blitz May 9 Late 2023"]
[White "Panico, Nick"]
[Black "WindWhistler11"]
[WhiteFideId "2026724"]
[WhiteElo "1982"]
[BlackElo "2513"]
[Result "0-1"]
[Round "01"]
[TimeControl "180+2"]
[Date "2023.05.09"]
[WhiteClock "0:00:32"]
[BlackClock "0:00:16"]

1. d4 {[%clk 0:03:00]}  Nf6 {[%clk 0:02:58]} 2. Bf4 {[%clk 0:03:00]}  e6 {[%clk 0:02:57]} 3. e3 {[%clk 0:03:00]}  c5 {[%clk 0:02:51]} 4. c3 {[%clk 0:03:00]}  Nc6 {[%clk 0:02:51]} 5. Nd2 {[%clk 0:03:00]}  b6 {[%clk 0:02:51]} 6. Ngf3 {[%clk 0:02:59]}  Bb7 {[%clk 0:02:51]} 7. h3 {[%clk 0:03:00]}  Be7 {[%clk 0:02:51]} 8. a4 {[%clk 0:03:00]}  cxd4 {[%clk 0:02:51]} 9. exd4 {[%clk 0:03:00]}  d6 {[%clk 0:02:51]} 10. Be2 {[%clk 0:02:58]}  O-O {[%clk 0:02:51]} 11. O-O {[%clk 0:02:58]}  Re8 {[%clk 0:02:52]} 12. Qb3 {[%clk 0:02:58]}  Na5 {[%clk 0:02:49]} 13. Qa2 {[%clk 0:02:53]}  Rc8 {[%clk 0:02:43]} 14. Rfe1 {[%clk 0:02:46]}  h6 {[%clk 0:02:41]} 15. Bb5 {[%clk 0:02:46]}  Nd7 {[%clk 0:02:38]} 16. Nc4 {[%clk 0:02:41]}  Bd5 {[%clk 0:02:34]} 17. b3 {[%clk 0:02:33]}  Nxc4 {[%clk 0:02:21]} 18. bxc4 {[%clk 0:02:31]}  Bxf3 {[%clk 0:02:15]} 19. gxf3 {[%clk 0:02:32]}  Bf8 {[%clk 0:02:08]} 20. a5 {[%clk 0:02:31]}  Rc7 {[%clk 0:01:51]} 21. Qa4 {[%clk 0:02:30]}  Qf6 {[%clk 0:01:34]} 22. Bg3 {[%clk 0:02:29]}  Rd8 {[%clk 0:01:33]} 23. axb6 {[%clk 0:02:22]}  Nxb6 {[%clk 0:01:33]} 24. Qa5 {[%clk 0:02:23]}  Re7 {[%clk 0:01:11]} 25. Qb4 {[%clk 0:02:11]}  Qxf3 {[%clk 0:01:09]} 26. Qb2 {[%clk 0:02:04]}  Qh5 {[%clk 0:01:01]} 27. Kg2 {[%clk 0:02:02]}  Rc8 {[%clk 0:00:58]} 28. Ba6 {[%clk 0:01:52]}  Rd8 {[%clk 0:00:56]} 29. Reb1 {[%clk 0:01:46]}  Qg6 {[%clk 0:00:47]} 30. Qb5 {[%clk 0:01:42]}  Qe4+ {[%clk 0:00:42]} 31. Kh2 {[%clk 0:01:41]}  f5 {[%clk 0:00:40]} 32. Re1 {[%clk 0:01:35]}  Qf3 {[%clk 0:00:40]} 33. Re3 {[%clk 0:01:30]}  Qh5 {[%clk 0:00:40]} 34. Rae1 {[%clk 0:01:23]}  Qf7 {[%clk 0:00:40]} 35. f4 {[%clk 0:01:20]}  g5 {[%clk 0:00:40]} 36. Rg1 {[%clk 0:01:19]}  Bg7 {[%clk 0:00:39]} 37. c5 {[%clk 0:01:16]}  Nd5 {[%clk 0:00:38]} 38. Rf3 {[%clk 0:01:13]}  Kh7 {[%clk 0:00:36]} 39. Qd3 {[%clk 0:01:12]}  Nf6 {[%clk 0:00:36]} 40. Bc4 {[%clk 0:01:10]}  d5 {[%clk 0:00:35]} 41. Bb5 {[%clk 0:01:10]}  Ne4 {[%clk 0:00:34]} 42. c6 {[%clk 0:01:05]}  Qh5 {[%clk 0:00:33]} 43. Qe3 {[%clk 0:01:00]}  g4 {[%clk 0:00:33]} 44. c7 {[%clk 0:00:40]}  Rxc7 {[%clk 0:00:31]} 45. h4 {[%clk 0:00:39]}  gxf3 {[%clk 0:00:30]} 46. Rf1 {[%clk 0:00:35]}  Rxc3 {[%clk 0:00:29]} 47. Bd3 {[%clk 0:00:33]}  Rb8 {[%clk 0:00:24]} 48. Rxf3 {[%clk 0:00:33]}  Rb2+ {[%clk 0:00:24]} 49. Bf2 {[%clk 0:00:31]}  Qxf3 {[%clk 0:00:23]} 50. Qxf3 {[%clk 0:00:31]}  Rxf2+ {[%clk 0:00:23]} 51. Qxf2 {[%clk 0:00:30]}  Nxf2 {[%clk 0:00:24]} 52. Bb5 {[%clk 0:00:29]}  Bxd4 {[%clk 0:00:22]} 53. Bd7 {[%clk 0:00:29]}  Rh3+ {[%clk 0:00:21]} 54. Kg1 {[%clk 0:00:29]}  Rxh4 {[%clk 0:00:18]} 55. Bxe6 {[%clk 0:00:30]}  Rxf4 {[%clk 0:00:19]} 56. Kg2 {[%clk 0:00:30]}  Ne4 {[%clk 0:00:18]} 57. Bxd5 {[%clk 0:00:30]}  a5 {[%clk 0:00:18]} 58. Kh3 {[%clk 0:00:30]}  a4 {[%clk 0:00:18]} 59. Kg2 {[%clk 0:00:30]}  a3 {[%clk 0:00:18]} 60. Kh3 {[%clk 0:00:31]}  Kg6 {[%clk 0:00:18]} 61. Kg2 {[%clk 0:00:30]}  Kf6 {[%clk 0:00:19]} 62. Kh3 {[%clk 0:00:31]}  Ke5 {[%clk 0:00:19]} 63. Bf7 {[%clk 0:00:32]}  Ng5+ {[%clk 0:00:17]} 64. Kg2 {[%clk 0:00:33]}  Nxf7 {[%clk 0:00:17]} 65. Kh3 {[%clk 0:00:33]}  a2 {[%clk 0:00:17]} 66. Kg3 {[%clk 0:00:33]}  a1=Q {[%clk 0:00:17]} 67. Kh3 {[%clk 0:00:34]}  Qc3+ {[%clk 0:00:16]} 68. Kg2 {[%clk 0:00:35]}  Qf3+ {[%clk 0:00:16]} 69. Kh2 {[%clk 0:00:32]}  Bg1+ {[%clk 0:00:16]} 70. Kxg1 {[%clk 0:00:32]}  Qf2+ {[%clk 0:00:16]} 71. Kh1 {[%clk 0:00:32]}  Rh4# {[%clk 0:00:16]} 0-1


[Site "https://www.chess.com"]

[Event "Titled Tuesday Blitz May 9 Late 2023"]
[White "Bambino Filho, Antonio Carlos"]
[Black "Prado, Alexandra"]
[WhiteFideId "2113163"]
[BlackFideId "3301346"]
[WhiteElo "2513"]
[BlackElo "1759"]
[Result "1-0"]
[Round "01"]
[TimeControl "180+2"]
[Date "2023.05.09"]
[WhiteClock "0:01:31"]
[BlackClock "0:00:01"]

1. d4 {[%clk 0:02:57]}  Nf6 {[%clk 0:02:55]} 2. c4 {[%clk 0:02:56]}  g6 {[%clk 0:02:55]} 3. Nc3 {[%clk 0:02:56]}  Bg7 {[%clk 0:02:55]} 4. e4 {[%clk 0:02:56]}  d6 {[%clk 0:02:55]} 5. Be2 {[%clk 0:02:56]}  O-O {[%clk 0:02:51]} 6. Bg5 {[%clk 0:02:54]}  h6 {[%clk 0:02:48]} 7. Be3 {[%clk 0:02:52]}  e5 {[%clk 0:02:41]} 8. d5 {[%clk 0:02:52]}  Nbd7 {[%clk 0:02:24]} 9. Qd2 {[%clk 0:02:51]}  Kh7 {[%clk 0:02:23]} 10. h4 {[%clk 0:02:50]}  Nc5 {[%clk 0:02:17]} 11. f3 {[%clk 0:02:51]}  a6 {[%clk 0:01:50]} 12. g4 {[%clk 0:02:49]}  Ng8 {[%clk 0:01:41]} 13. Nh3 {[%clk 0:02:46]}  f6 {[%clk 0:01:19]} 14. Nf2 {[%clk 0:02:38]}  Rb8 {[%clk 0:01:17]} 15. Nd3 {[%clk 0:02:38]}  b6 {[%clk 0:00:53]} 16. b4 {[%clk 0:02:15]}  Nxd3+ {[%clk 0:00:50]} 17. Bxd3 {[%clk 0:02:16]}  Ne7 {[%clk 0:00:40]} 18. h5 {[%clk 0:02:13]}  g5 {[%clk 0:00:39]} 19. c5 {[%clk 0:02:12]}  bxc5 {[%clk 0:00:37]} 20. bxc5 {[%clk 0:02:13]}  c6 {[%clk 0:00:28]} 21. Bc4 {[%clk 0:02:03]}  dxc5 {[%clk 0:00:17]} 22. d6 {[%clk 0:01:49]}  Ng8 {[%clk 0:00:11]} 23. O-O {[%clk 0:01:42]}  Bd7 {[%clk 0:00:08]} 24. Na4 {[%clk 0:01:32]}  Qa5 {[%clk 0:00:01]} 25. Qxa5 {[%clk 0:01:31]} 1-0


[Site "https://www.chess.com"]

[Event "Titled Tuesday Blitz May 9 Late 2023"]
[White "luachess1"]
[Black "Sokolov, Andrei"]
[BlackFideId "11600306"]
[WhiteElo "1679"]
[BlackElo "2473"]
[Result "0-1"]
[Round "01"]
[TimeControl "180+2"]
[Date "2023.05.09"]
[WhiteClock "0:00:05"]
[BlackClock "0:00:15"]

1. d4 {[%clk 0:02:56]}  Nf6 {[%clk 0:02:59]} 2. c4 {[%clk 0:02:56]}  e6 {[%clk 0:02:57]} 3. Nc3 {[%clk 0:02:57]}  c5 {[%clk 0:02:57]} 4. d5 {[%clk 0:02:55]}  exd5 {[%clk 0:02:58]} 5. cxd5 {[%clk 0:02:55]}  d6 {[%clk 0:02:59]} 6. Bg5 {[%clk 0:02:54]}  h6 {[%clk 0:02:55]} 7. Bh4 {[%clk 0:02:53]}  g6 {[%clk 0:02:52]} 8. e4 {[%clk 0:02:50]}  a6 {[%clk 0:02:48]} 9. a3 {[%clk 0:02:38]}  Bg7 {[%clk 0:02:44]} 10. Rc1 {[%clk 0:02:37]}  O-O {[%clk 0:02:44]} 11. Nf3 {[%clk 0:02:31]}  Re8 {[%clk 0:02:42]} 12. Bd3 {[%clk 0:02:29]}  g5 {[%clk 0:02:39]} 13. Bg3 {[%clk 0:02:28]}  b5 {[%clk 0:02:31]} 14. b4 {[%clk 0:02:23]}  c4 {[%clk 0:02:27]} 15. Bc2 {[%clk 0:02:23]}  Nxe4 {[%clk 0:02:11]} 16. Nxe4 {[%clk 0:02:07]}  f5 {[%clk 0:02:10]} 17. O-O {[%clk 0:01:54]}  fxe4 {[%clk 0:02:10]} 18. Nd2 {[%clk 0:01:49]}  Bf5 {[%clk 0:02:08]} 19. Re1 {[%clk 0:01:47]}  Bb2 {[%clk 0:01:43]} 20. Rb1 {[%clk 0:01:44]}  Bc3 {[%clk 0:01:42]} 21. Re3 {[%clk 0:01:24]}  Bd4 {[%clk 0:01:39]} 22. Re1 {[%clk 0:01:20]}  Bc3 {[%clk 0:01:03]} 23. Re3 {[%clk 0:01:18]}  Bxd2 {[%clk 0:01:00]} 24. Qxd2 {[%clk 0:01:19]}  Ra7 {[%clk 0:01:00]} 25. Qe2 {[%clk 0:01:17]}  Rae7 {[%clk 0:00:57]} 26. Re1 {[%clk 0:01:15]}  a5 {[%clk 0:00:55]} 27. Qh5 {[%clk 0:01:09]}  Kg7 {[%clk 0:00:54]} 28. h4 {[%clk 0:00:59]}  Bg6 {[%clk 0:00:54]} 29. Qg4 {[%clk 0:00:58]}  axb4 {[%clk 0:00:54]} 30. axb4 {[%clk 0:00:50]}  Na6 {[%clk 0:00:45]} 31. Bxe4 {[%clk 0:00:39]}  Nxb4 {[%clk 0:00:30]} 32. Bxg6 {[%clk 0:00:38]}  Rxe3 {[%clk 0:00:29]} 33. Rxe3 {[%clk 0:00:33]}  Rxe3 {[%clk 0:00:29]} 34. fxe3 {[%clk 0:00:34]}  Kxg6 {[%clk 0:00:28]} 35. Qe6+ {[%clk 0:00:31]}  Qf6 {[%clk 0:00:26]} 36. Qe8+ {[%clk 0:00:28]}  Qf7 {[%clk 0:00:23]} 37. Qe4+ {[%clk 0:00:28]}  Kg7 {[%clk 0:00:20]} 38. Bxd6 {[%clk 0:00:28]}  Nxd5 {[%clk 0:00:19]} 39. Be5+ {[%clk 0:00:27]}  Nf6 {[%clk 0:00:18]} 40. Qd4 {[%clk 0:00:25]}  Qe6 {[%clk 0:00:16]} 41. hxg5 {[%clk 0:00:24]}  hxg5 {[%clk 0:00:15]} 42. Qa7+ {[%clk 0:00:22]}  Kg6 {[%clk 0:00:15]} 43. Qd4 {[%clk 0:00:18]}  Ng4 {[%clk 0:00:15]} 44. Bh8 {[%clk 0:00:13]}  Qxe3+ {[%clk 0:00:15]} 45. Qxe3 {[%clk 0:00:14]}  Nxe3 {[%clk 0:00:16]} 46. Kf2 {[%clk 0:00:14]}  Nd5 {[%clk 0:00:17]} 47. Ke2 {[%clk 0:00:13]}  b4 {[%clk 0:00:17]} 48. Kd2 {[%clk 0:00:14]}  b3 {[%clk 0:00:16]} 49. Kc1 {[%clk 0:00:13]}  c3 {[%clk 0:00:15]} 50. Be5 {[%clk 0:00:10]}  Kf5 {[%clk 0:00:15]} 51. Bd4 {[%clk 0:00:05]}  Ke4 {[%clk 0:00:15]} 0-1


[Site "https://www.chess.com"]